[Event "Titled Tuesday Blitz November 07 Early 2023"]
[White "Harsh Suresh"]
[Black "Csonka, Balazs"]
[WhiteFideId "45018464"]
[BlackFideId "742910"]
[WhiteElo "2945"]
[BlackElo "2760"]
[Result "0-1"]
[Round "4"]
[TimeControl "180+1"]
[Date "2023.11.07"]
[WhiteClock "0:00:08"]
[BlackClock "0:00:03"]
[Board "28"]

1. d4 {[%clk 0:03:00]}  Nf6 {[%clk 0:02:59]} 2. c4 {[%clk 0:02:55]}  g6 {[%clk 0:03:00]} 3. Nc3 {[%clk 0:02:55]}  Bg7 {[%clk 0:03:00]} 4. e4 {[%clk 0:02:55]}  d6 {[%clk 0:03:01]} 5. h3 {[%clk 0:02:54]}  e5 {[%clk 0:02:58]} 6. d5 {[%clk 0:02:52]}  a5 {[%clk 0:02:57]} 7. Be3 {[%clk 0:02:51]}  Na6 {[%clk 0:02:52]} 8. Bd3 {[%clk 0:02:45]}  O-O {[%clk 0:02:37]} 9. g4 {[%clk 0:02:45]}  Nd7 {[%clk 0:02:28]} 10. Nge2 {[%clk 0:02:34]}  Qh4 {[%clk 0:02:12]} 11. Qd2 {[%clk 0:02:31]}  h6 {[%clk 0:02:07]} 12. Ng1 {[%clk 0:02:24]}  Ndc5 {[%clk 0:02:00]} 13. Bc2 {[%clk 0:02:22]}  Bxg4 {[%clk 0:01:57]} 14. a3 {[%clk 0:01:57]}  f5 {[%clk 0:01:37]} 15. Nb5 {[%clk 0:01:34]}  Bh5 {[%clk 0:01:05]} 16. Ne2 {[%clk 0:01:21]}  Nxe4 {[%clk 0:00:50]} 17. Bxe4 {[%clk 0:01:20]}  Qxe4 {[%clk 0:00:51]} 18. Ng3 {[%clk 0:01:08]}  Qf3 {[%clk 0:00:43]} 19. Rg1 {[%clk 0:01:02]}  f4 {[%clk 0:00:39]} 20. Nxh5 {[%clk 0:00:56]}  fxe3 {[%clk 0:00:36]} 21. Qxe3 {[%clk 0:00:54]}  Qxe3+ {[%clk 0:00:35]} 22. fxe3 {[%clk 0:00:55]}  gxh5 {[%clk 0:00:36]} 23. Ke2 {[%clk 0:00:55]}  Rf7 {[%clk 0:00:33]} 24. Rg2 {[%clk 0:00:51]}  Raf8 {[%clk 0:00:32]} 25. Rag1 {[%clk 0:00:50]}  Kh7 {[%clk 0:00:33]} 26. Nc3 {[%clk 0:00:44]}  Nc5 {[%clk 0:00:26]} 27. b4 {[%clk 0:00:44]}  axb4 {[%clk 0:00:25]} 28. axb4 {[%clk 0:00:45]}  Na6 {[%clk 0:00:20]} 29. Rb1 {[%clk 0:00:45]}  e4 {[%clk 0:00:14]} 30. Nxe4 {[%clk 0:00:44]}  Re7 {[%clk 0:00:13]} 31. Nf2 {[%clk 0:00:39]}  Rfe8 {[%clk 0:00:12]} 32. Nd1 {[%clk 0:00:39]}  Be5 {[%clk 0:00:10]} 33. Rb3 {[%clk 0:00:37]}  Nb8 {[%clk 0:00:10]} 34. Rf2 {[%clk 0:00:33]}  Nd7 {[%clk 0:00:10]} 35. Ra3 {[%clk 0:00:34]}  Nb6 {[%clk 0:00:06]} 36. Kd3 {[%clk 0:00:34]}  c6 {[%clk 0:00:06]} 37. e4 {[%clk 0:00:34]}  Bg7 {[%clk 0:00:06]} 38. c5 {[%clk 0:00:33]}  dxc5 {[%clk 0:00:03]} 39. bxc5 {[%clk 0:00:34]}  Nd7 {[%clk 0:00:04]} 40. dxc6 {[%clk 0:00:27]}  bxc6 {[%clk 0:00:03]} 41. Ra5 {[%clk 0:00:22]}  Rxe4 {[%clk 0:00:03]} 42. Rf7 {[%clk 0:00:20]}  R4e7 {[%clk 0:00:02]} 43. Rxe7 {[%clk 0:00:20]}  Rxe7 {[%clk 0:00:03]} 44. Ne3 {[%clk 0:00:20]}  Ne5+ {[%clk 0:00:03]} 45. Kd2 {[%clk 0:00:19]}  Nf3+ {[%clk 0:00:03]} 46. Kd3 {[%clk 0:00:18]}  Ne1+ {[%clk 0:00:03]} 47. Kd2 {[%clk 0:00:18]}  Nf3+ {[%clk 0:00:03]} 48. Kd3 {[%clk 0:00:18]}  Rd7+ {[%clk 0:00:03]} 49. Ke4 {[%clk 0:00:17]}  Nd2+ {[%clk 0:00:03]} 50. Kf5 {[%clk 0:00:15]}  Nb3 {[%clk 0:00:04]} 51. Ra6 {[%clk 0:00:15]}  Nxc5 {[%clk 0:00:04]} 52. Rxc6 {[%clk 0:00:15]}  Nd3 {[%clk 0:00:04]} 53. Ke6 {[%clk 0:00:15]}  Ra7 {[%clk 0:00:03]} 54. Nf5 {[%clk 0:00:15]}  Nf4+ {[%clk 0:00:03]} 55. Kd6 {[%clk 0:00:15]}  Rf7 {[%clk 0:00:02]} 56. Ng3 {[%clk 0:00:14]}  h4 {[%clk 0:00:02]} 57. Ne4 {[%clk 0:00:14]}  Ng6 {[%clk 0:00:02]} 58. Ke6 {[%clk 0:00:14]}  Rf8 {[%clk 0:00:02]} 59. Rc7 {[%clk 0:00:14]}  Nf4+ {[%clk 0:00:02]} 60. Kd6 {[%clk 0:00:14]}  Nxh3 {[%clk 0:00:02]} 61. Nc5 {[%clk 0:00:13]}  Ng5 {[%clk 0:00:02]} 62. Nd3 {[%clk 0:00:13]}  Rf7 {[%clk 0:00:02]} 63. Rc2 {[%clk 0:00:12]}  Rf6+ {[%clk 0:00:02]} 64. Kd5 {[%clk 0:00:12]}  h3 {[%clk 0:00:03]} 65. Rh2 {[%clk 0:00:13]}  Rf5+ {[%clk 0:00:03]} 66. Kd6 {[%clk 0:00:13]}  Kg6 {[%clk 0:00:03]} 67. Nc5 {[%clk 0:00:11]}  Kh5 {[%clk 0:00:02]} 68. Nb3 {[%clk 0:00:11]}  Be5+ {[%clk 0:00:03]} 69. Kd5 {[%clk 0:00:08]}  Bxh2+ {[%clk 0:00:03]} 0-1


[Site "https://www.chess.com"]

[Event "Titled Tuesday Blitz November 07 Early 2023"]
[White "Timerkhanov, Alexander"]
[Black "Rostovtsev, Dmitry"]
[WhiteFideId "24177938"]
[BlackFideId "34278320"]
[WhiteElo "2717"]
[BlackElo "2941"]
[Result "1-0"]
[Round "4"]
[TimeControl "180+1"]
[Date "2023.11.07"]
[WhiteClock "0:00:08"]
[BlackClock "0:00:03"]
[Board "30"]

1. d4 {[%clk 0:03:00]}  Nf6 {[%clk 0:02:59]} 2. Bg5 {[%clk 0:03:00]}  c5 {[%clk 0:02:57]} 3. d5 {[%clk 0:02:59]}  g6 {[%clk 0:02:58]} 4. Nc3 {[%clk 0:02:56]}  Bg7 {[%clk 0:02:57]} 5. e4 {[%clk 0:02:57]}  d6 {[%clk 0:02:57]} 6. f3 {[%clk 0:02:57]}  O-O {[%clk 0:02:45]} 7. Qd2 {[%clk 0:02:57]}  a6 {[%clk 0:02:43]} 8. a4 {[%clk 0:02:55]}  Qa5 {[%clk 0:02:43]} 9. Bh6 {[%clk 0:02:53]}  b5 {[%clk 0:02:37]} 10. h4 {[%clk 0:02:43]}  b4 {[%clk 0:02:15]} 11. Nd1 {[%clk 0:02:38]}  Bxh6 {[%clk 0:01:29]} 12. Qxh6 {[%clk 0:02:37]}  b3+ {[%clk 0:01:29]} 13. c3 {[%clk 0:02:37]}  e6 {[%clk 0:01:19]} 14. dxe6 {[%clk 0:02:33]}  Bxe6 {[%clk 0:01:20]} 15. h5 {[%clk 0:02:30]}  Nc6 {[%clk 0:01:13]} 16. hxg6 {[%clk 0:02:29]}  fxg6 {[%clk 0:01:14]} 17. Nh3 {[%clk 0:02:28]}  Ne5 {[%clk 0:00:59]} 18. Ng5 {[%clk 0:02:24]}  Nf7 {[%clk 0:00:59]} 19. Nxf7 {[%clk 0:01:53]}  Rxf7 {[%clk 0:01:00]} 20. Ne3 {[%clk 0:01:51]}  Re8 {[%clk 0:00:46]} 21. Qg5 {[%clk 0:01:41]}  d5 {[%clk 0:00:40]} 22. e5 {[%clk 0:01:40]}  Nd7 {[%clk 0:00:30]} 23. f4 {[%clk 0:01:39]}  Nb6 {[%clk 0:00:20]} 24. Bd3 {[%clk 0:01:15]}  Rg7 {[%clk 0:00:12]} 25. O-O {[%clk 0:01:11]}  d4 {[%clk 0:00:11]} 26. cxd4 {[%clk 0:01:09]}  cxd4 {[%clk 0:00:12]} 27. Ng4 {[%clk 0:01:09]}  Bxg4 {[%clk 0:00:12]} 28. Qxg4 {[%clk 0:01:10]}  Nd5 {[%clk 0:00:10]} 29. Bc4 {[%clk 0:01:10]}  Kh8 {[%clk 0:00:10]} 30. Bxd5 {[%clk 0:00:47]}  Qxd5 {[%clk 0:00:11]} 31. Rad1 {[%clk 0:00:46]}  Rf7 {[%clk 0:00:10]} 32. Rd3 {[%clk 0:00:42]}  Qe4 {[%clk 0:00:09]} 33. Qf3 {[%clk 0:00:40]}  Rxe5 {[%clk 0:00:03]} 34. Rxb3 {[%clk 0:00:23]}  Qxf3 {[%clk 0:00:02]} 35. Rfxf3 {[%clk 0:00:23]}  Re4 {[%clk 0:00:02]} 36. g3 {[%clk 0:00:18]}  d3 {[%clk 0:00:02]} 37. Rfxd3 {[%clk 0:00:14]}  Rxa4 {[%clk 0:00:03]} 38. Rb8+ {[%clk 0:00:12]}  Kg7 {[%clk 0:00:03]} 39. Rdb3 {[%clk 0:00:11]}  Rc4 {[%clk 0:00:02]} 40. R8b7 {[%clk 0:00:11]}  Rc2 {[%clk 0:00:02]} 41. Rxf7+ {[%clk 0:00:10]}  Kxf7 {[%clk 0:00:02]} 42. Rb7+ {[%clk 0:00:11]}  Kf6 {[%clk 0:00:01]} 43. Rb6+ {[%clk 0:00:11]}  Kf5 {[%clk 0:00:02]} 44. Rxa6 {[%clk 0:00:10]}  Kg4 {[%clk 0:00:02]} 45. Ra3 {[%clk 0:00:10]}  Rxb2 {[%clk 0:00:02]} 46. Rd3 {[%clk 0:00:11]}  Re2 {[%clk 0:00:02]} 47. Rc3 {[%clk 0:00:11]}  Rd2 {[%clk 0:00:02]} 48. Rb3 {[%clk 0:00:10]}  Rc2 {[%clk 0:00:02]} 49. Ra3 {[%clk 0:00:11]}  Rb2 {[%clk 0:00:03]} 50. Rc3 {[%clk 0:00:11]}  Rd2 {[%clk 0:00:03]} 51. Rb3 {[%clk 0:00:11]}  Re2 {[%clk 0:00:03]} 52. Rc3 {[%clk 0:00:12]}  Kh3 {[%clk 0:00:03]} 53. Kf1 {[%clk 0:00:07]}  Rb2 {[%clk 0:00:02]} 54. Rd3 {[%clk 0:00:06]}  Rg2 {[%clk 0:00:02]} 55. g4+ {[%clk 0:00:03]}  Rg3 {[%clk 0:00:03]} 56. Rxg3+ {[%clk 0:00:03]}  Kxg3 {[%clk 0:00:03]} 57. f5 {[%clk 0:00:04]}  h5 {[%clk 0:00:01]} 58. gxh5 {[%clk 0:00:04]}  gxh5 {[%clk 0:00:02]} 59. f6 {[%clk 0:00:04]}  h4 {[%clk 0:00:02]} 60. f7 {[%clk 0:00:05]}  h3 {[%clk 0:00:03]} 61. f8=Q {[%clk 0:00:05]}  h2 {[%clk 0:00:04]} 62. Qf2+ {[%clk 0:00:06]}  Kh3 {[%clk 0:00:04]} 63. Qg2+ {[%clk 0:00:06]}  Kh4 {[%clk 0:00:05]} 64. Qh1 {[%clk 0:00:07]}  Kg3 {[%clk 0:00:05]} 65. Qg2+ {[%clk 0:00:07]}  Kh4 {[%clk 0:00:03]} 66. Qxh2+ {[%clk 0:00:08]} 1-0


[Site "https://www.chess.com"]

[Event "Titled Tuesday Blitz November 07 Early 2023"]
[White "Atakhan, Abtin"]
[Black "Baskakov, Egor"]
[WhiteFideId "22502203"]
[BlackFideId "24197866"]
[WhiteElo "2709"]
[BlackElo "2926"]
[Result "1-0"]
[Round "4"]
[TimeControl "180+1"]
[Date "2023.11.07"]
[WhiteClock "0:01:19"]
[BlackClock "0:00:46"]
[Board "32"]

1. Nf3 {[%clk 0:03:00]}  Nf6 {[%clk 0:02:59]} 2. c4 {[%clk 0:03:01]}  e6 {[%clk 0:03:00]} 3. Nc3 {[%clk 0:03:01]}  d5 {[%clk 0:03:00]} 4. d4 {[%clk 0:03:02]}  Ne4 {[%clk 0:03:01]} 5. Bf4 {[%clk 0:03:01]}  f5 {[%clk 0:02:56]} 6. e3 {[%clk 0:02:58]}  c6 {[%clk 0:02:54]} 7. Ne5 {[%clk 0:02:57]}  g6 {[%clk 0:02:55]} 8. Nxe4 {[%clk 0:02:53]}  dxe4 {[%clk 0:02:50]} 9. c5 {[%clk 0:02:53]}  Nd7 {[%clk 0:02:50]} 10. Bc4 {[%clk 0:02:50]}  Bg7 {[%clk 0:02:47]} 11. O-O {[%clk 0:02:36]}  Qe7 {[%clk 0:02:43]} 12. Bb3 {[%clk 0:02:33]}  Nxe5 {[%clk 0:02:35]} 13. dxe5 {[%clk 0:02:23]}  Qxc5 {[%clk 0:02:35]} 14. Rc1 {[%clk 0:02:21]}  Qe7 {[%clk 0:02:34]} 15. f3 {[%clk 0:02:11]}  g5 {[%clk 0:02:27]} 16. fxe4 {[%clk 0:02:04]}  gxf4 {[%clk 0:02:27]} 17. exf5 {[%clk 0:02:04]}  Bxe5 {[%clk 0:02:12]} 18. fxe6 {[%clk 0:01:53]}  O-O {[%clk 0:01:43]} 19. exf4 {[%clk 0:01:52]}  Bxb2 {[%clk 0:01:29]} 20. Rc2 {[%clk 0:01:43]}  Bf6 {[%clk 0:01:27]} 21. f5 {[%clk 0:01:37]}  b6 {[%clk 0:01:11]} 22. Rxc6 {[%clk 0:01:29]}  Bb7 {[%clk 0:01:07]} 23. Rd6 {[%clk 0:01:28]}  Rad8 {[%clk 0:01:04]} 24. Rxd8 {[%clk 0:01:27]}  Qc5+ {[%clk 0:00:56]} 25. Kh1 {[%clk 0:01:24]}  Rxd8 {[%clk 0:00:46]} 26. e7+ {[%clk 0:01:19]} 1-0


[Site "https://www.chess.com"]

[Event "Titled Tuesday Blitz November 07 Early 2023"]
[White "Krallis, Christos"]
[Black "Melkumyan, Hrant"]
[WhiteFideId "4298896"]
[BlackFideId "13302485"]
[WhiteElo "2708"]
[BlackElo "2890"]
[Result "0-1"]
[Round "4"]
[TimeControl "180+1"]
[Date "2023.11.07"]
[WhiteClock "0:00:01"]
[BlackClock "0:00:10"]
[Board "33"]

1. e4 {[%clk 0:02:59]}  e5 {[%clk 0:02:58]} 2. Nf3 {[%clk 0:02:57]}  Nc6 {[%clk 0:02:58]} 3. Bc4 {[%clk 0:02:57]}  Nf6 {[%clk 0:02:58]} 4. Nc3 {[%clk 0:02:57]}  Nxe4 {[%clk 0:02:56]} 5. Nxe4 {[%clk 0:02:44]}  d5 {[%clk 0:02:56]} 6. Bd3 {[%clk 0:02:19]}  f5 {[%clk 0:02:56]} 7. Nc3 {[%clk 0:02:18]}  e4 {[%clk 0:02:56]} 8. O-O {[%clk 0:02:09]}  exd3 {[%clk 0:02:47]} 9. Re1+ {[%clk 0:02:08]}  Be7 {[%clk 0:02:47]} 10. cxd3 {[%clk 0:02:08]}  O-O {[%clk 0:02:35]} 11. Qb3 {[%clk 0:02:06]}  Kh8 {[%clk 0:02:35]} 12. Nxd5 {[%clk 0:01:50]}  Bd6 {[%clk 0:02:34]} 13. Ne3 {[%clk 0:01:27]}  b6 {[%clk 0:02:27]} 14. Nc4 {[%clk 0:01:07]}  Bb7 {[%clk 0:02:22]} 15. Nxd6 {[%clk 0:01:07]}  Qxd6 {[%clk 0:02:23]} 16. Qc3 {[%clk 0:00:46]}  Rae8 {[%clk 0:02:20]} 17. Re3 {[%clk 0:00:27]}  f4 {[%clk 0:02:12]} 18. Re4 {[%clk 0:00:17]}  Ne7 {[%clk 0:02:11]} 19. b3 {[%clk 0:00:14]}  Bxe4 {[%clk 0:01:48]} 20. dxe4 {[%clk 0:00:13]}  Qc6 {[%clk 0:01:48]} 21. Bb2 {[%clk 0:00:09]}  Qxc3 {[%clk 0:01:48]} 22. Bxc3 {[%clk 0:00:09]}  c5 {[%clk 0:01:49]} 23. h4 {[%clk 0:00:09]}  Nc6 {[%clk 0:01:49]} 24. Re1 {[%clk 0:00:09]}  h6 {[%clk 0:01:43]} 25. h5 {[%clk 0:00:09]}  Kh7 {[%clk 0:01:44]} 26. Nh4 {[%clk 0:00:09]}  Re6 {[%clk 0:01:43]} 27. Ng6 {[%clk 0:00:07]}  Rf7 {[%clk 0:01:39]} 28. f3 {[%clk 0:00:08]}  Ne7 {[%clk 0:01:28]} 29. Nh4 {[%clk 0:00:06]}  Rf8 {[%clk 0:01:22]} 30. Kf2 {[%clk 0:00:06]}  Rd8 {[%clk 0:01:22]} 31. g3 {[%clk 0:00:05]}  fxg3+ {[%clk 0:01:21]} 32. Kxg3 {[%clk 0:00:06]}  b5 {[%clk 0:01:20]} 33. a3 {[%clk 0:00:05]}  Rd3 {[%clk 0:01:18]} 34. Ng2 {[%clk 0:00:04]}  Ra6 {[%clk 0:01:11]} 35. Nf4 {[%clk 0:00:03]}  Rd7 {[%clk 0:01:07]} 36. b4 {[%clk 0:00:01]}  c4 {[%clk 0:01:01]} 37. Ra1 {[%clk 0:00:01]}  Nc8 {[%clk 0:00:56]} 38. Ne2 {[%clk 0:00:02]}  Nb6 {[%clk 0:00:56]} 39. Nd4 {[%clk 0:00:02]}  Na4 {[%clk 0:00:53]} 40. Nf5 {[%clk 0:00:02]}  Nxc3 {[%clk 0:00:50]} 41. dxc3 {[%clk 0:00:03]}  Rd3 {[%clk 0:00:50]} 42. Kf4 {[%clk 0:00:03]}  Rf6 {[%clk 0:00:49]} 43. Rg1 {[%clk 0:00:03]}  Rf7 {[%clk 0:00:49]} 44. e5 {[%clk 0:00:03]}  Rxf3+ {[%clk 0:00:43]} 45. Kxf3 {[%clk 0:00:03]}  Rxf5+ {[%clk 0:00:43]} 46. Ke4 {[%clk 0:00:04]}  Rxh5 {[%clk 0:00:44]} 47. e6 {[%clk 0:00:04]}  Kg8 {[%clk 0:00:44]} 48. e7 {[%clk 0:00:04]}  Kf7 {[%clk 0:00:42]} 49. Rxg7+ {[%clk 0:00:05]}  Ke8 {[%clk 0:00:42]} 50. Rg8+ {[%clk 0:00:05]}  Kxe7 {[%clk 0:00:42]} 51. Rg7+ {[%clk 0:00:05]}  Kf6 {[%clk 0:00:43]} 52. Rxa7 {[%clk 0:00:05]}  Re5+ {[%clk 0:00:43]} 53. Kd4 {[%clk 0:00:05]}  Rf5 {[%clk 0:00:41]} 54. Rh7 {[%clk 0:00:03]}  Kg5 {[%clk 0:00:40]} 55. a4 {[%clk 0:00:03]}  bxa4 {[%clk 0:00:40]} 56. Kxc4 {[%clk 0:00:03]}  h5 {[%clk 0:00:40]} 57. b5 {[%clk 0:00:03]}  a3 {[%clk 0:00:32]} 58. b6 {[%clk 0:00:03]}  h4 {[%clk 0:00:24]} 59. b7 {[%clk 0:00:02]}  Rf8 {[%clk 0:00:24]} 60. Kc5 {[%clk 0:00:03]}  a2 {[%clk 0:00:24]} 61. Rg7+ {[%clk 0:00:03]}  Kh5 {[%clk 0:00:19]} 62. Rg1 {[%clk 0:00:03]}  h3 {[%clk 0:00:19]} 63. Kc6 {[%clk 0:00:04]}  h2 {[%clk 0:00:18]} 64. Rh1 {[%clk 0:00:04]}  Kg4 {[%clk 0:00:18]} 65. Kc7 {[%clk 0:00:03]}  Kg3 {[%clk 0:00:18]} 66. b8=Q {[%clk 0:00:03]}  Rxb8 {[%clk 0:00:18]} 67. Kxb8 {[%clk 0:00:04]}  Kg2 {[%clk 0:00:19]} 68. Ra1 {[%clk 0:00:04]}  h1=Q {[%clk 0:00:20]} 69. Rxa2+ {[%clk 0:00:05]}  Kf3 {[%clk 0:00:20]} 70. Ra7 {[%clk 0:00:05]}  Qh8+ {[%clk 0:00:20]} 71. Kb7 {[%clk 0:00:05]}  Ke4 {[%clk 0:00:20]} 72. Kb6 {[%clk 0:00:04]}  Qf6+ {[%clk 0:00:17]} 73. Kb7 {[%clk 0:00:04]}  Kd5 {[%clk 0:00:16]} 74. Ra5+ {[%clk 0:00:03]}  Kc4 {[%clk 0:00:16]} 75. Ra4+ {[%clk 0:00:03]}  Kb5 {[%clk 0:00:15]} 76. Rb4+ {[%clk 0:00:03]}  Kc5 {[%clk 0:00:16]} 77. Ka7 {[%clk 0:00:02]}  Qxc3 {[%clk 0:00:13]} 78. Rb7 {[%clk 0:00:03]}  Qd4 {[%clk 0:00:13]} 79. Rc7+ {[%clk 0:00:02]}  Kb5+ {[%clk 0:00:14]} 80. Kb7 {[%clk 0:00:03]}  Qd5+ {[%clk 0:00:11]} 81. Kb8 {[%clk 0:00:02]}  Kb6 {[%clk 0:00:11]} 82. Re7 {[%clk 0:00:01]}  Qd8# {[%clk 0:00:10]} 0-1


[Site "https://www.chess.com"]

[Event "Titled Tuesday Blitz November 07 Early 2023"]
[White "Alexandre, Anne Shopie Elizabeth"]
[Black "Shapiro, Viktor"]
[WhiteFideId "11902418"]
[BlackFideId "4175700"]
[WhiteElo "2867"]
[BlackElo "2591"]
[Result "1/2-1/2"]
[Round "4"]
[TimeControl "180+1"]
[Date "2023.11.07"]
[WhiteClock "0:00:05"]
[BlackClock "0:00:21"]
[Board "34"]

1. d4 {[%clk 0:03:00]}  Nf6 {[%clk 0:03:00]} 2. c4 {[%clk 0:03:00]}  c5 {[%clk 0:03:00]} 3. d5 {[%clk 0:03:00]}  e6 {[%clk 0:03:01]} 4. Nc3 {[%clk 0:02:59]}  exd5 {[%clk 0:03:01]} 5. cxd5 {[%clk 0:03:00]}  d6 {[%clk 0:03:02]} 6. e4 {[%clk 0:03:00]}  g6 {[%clk 0:03:02]} 7. Nf3 {[%clk 0:02:54]}  Bg7 {[%clk 0:03:03]} 8. h3 {[%clk 0:02:53]}  O-O {[%clk 0:03:03]} 9. Bd3 {[%clk 0:02:46]}  b5 {[%clk 0:03:03]} 10. O-O {[%clk 0:02:45]}  b4 {[%clk 0:03:00]} 11. Ne2 {[%clk 0:02:40]}  Re8 {[%clk 0:03:00]} 12. Ng3 {[%clk 0:02:40]}  Ba6 {[%clk 0:03:00]} 13. Re1 {[%clk 0:02:36]}  Bxd3 {[%clk 0:02:55]} 14. Qxd3 {[%clk 0:02:37]}  Nbd7 {[%clk 0:02:55]} 15. Bf4 {[%clk 0:02:36]}  Nb6 {[%clk 0:02:45]} 16. Rac1 {[%clk 0:02:30]}  h6 {[%clk 0:02:34]} 17. b3 {[%clk 0:02:26]}  a5 {[%clk 0:02:34]} 18. Nf1 {[%clk 0:02:27]}  a4 {[%clk 0:02:34]} 19. N1d2 {[%clk 0:02:27]}  axb3 {[%clk 0:02:33]} 20. axb3 {[%clk 0:02:28]}  Ra3 {[%clk 0:02:17]} 21. Qb5 {[%clk 0:02:26]}  Nh5 {[%clk 0:02:05]} 22. Bh2 {[%clk 0:02:21]}  Bc3 {[%clk 0:02:02]} 23. Qc6 {[%clk 0:02:10]}  Nc8 {[%clk 0:01:52]} 24. Re2 {[%clk 0:01:45]}  Ra2 {[%clk 0:01:47]} 25. Kf1 {[%clk 0:01:44]}  Nf6 {[%clk 0:01:44]} 26. g4 {[%clk 0:01:36]}  g5 {[%clk 0:01:37]} 27. Rce1 {[%clk 0:01:25]}  Kg7 {[%clk 0:01:09]} 28. Kg2 {[%clk 0:00:41]}  Rb2 {[%clk 0:00:42]} 29. Qa4 {[%clk 0:00:29]}  Nb6 {[%clk 0:00:37]} 30. Qc6 {[%clk 0:00:29]}  Nc8 {[%clk 0:00:37]} 31. Qa6 {[%clk 0:00:28]}  Nb6 {[%clk 0:00:36]} 32. Qb5 {[%clk 0:00:21]}  Re7 {[%clk 0:00:24]} 33. Qc6 {[%clk 0:00:21]}  Nc8 {[%clk 0:00:23]} 34. Nc4 {[%clk 0:00:21]}  Rxb3 {[%clk 0:00:21]} 35. e5 {[%clk 0:00:19]}  dxe5 {[%clk 0:00:19]} 36. Bxe5 {[%clk 0:00:19]}  Bxe5 {[%clk 0:00:17]} 37. Rxe5 {[%clk 0:00:19]}  Rc3 {[%clk 0:00:14]} 38. d6 {[%clk 0:00:17]}  Rxe5 {[%clk 0:00:13]} 39. Ncxe5 {[%clk 0:00:17]}  Nxd6 {[%clk 0:00:13]} 40. Rd1 {[%clk 0:00:17]}  Nfe4 {[%clk 0:00:12]} 41. Qxe4 {[%clk 0:00:17]}  Nxe4 {[%clk 0:00:13]} 42. Rxd8 {[%clk 0:00:17]}  b3 {[%clk 0:00:13]} 43. Rd7 {[%clk 0:00:16]}  Rc2 {[%clk 0:00:11]} 44. Rxf7+ {[%clk 0:00:16]}  Kg8 {[%clk 0:00:12]} 45. Ne1 {[%clk 0:00:15]}  Rxf2+ {[%clk 0:00:10]} 46. Rxf2 {[%clk 0:00:14]}  Nxf2 {[%clk 0:00:11]} 47. Nc4 {[%clk 0:00:12]}  Ne4 {[%clk 0:00:10]} 48. Nd3 {[%clk 0:00:12]}  Kf7 {[%clk 0:00:10]} 49. Kf3 {[%clk 0:00:12]}  Nc3 {[%clk 0:00:09]} 50. Nxc5 {[%clk 0:00:12]}  Kf6 {[%clk 0:00:08]} 51. Nxb3 {[%clk 0:00:11]}  Nd5 {[%clk 0:00:08]} 52. Nbd2 {[%clk 0:00:12]}  Nf4 {[%clk 0:00:08]} 53. Ne4+ {[%clk 0:00:12]}  Kg6 {[%clk 0:00:09]} 54. Nf2 {[%clk 0:00:12]}  h5 {[%clk 0:00:08]} 55. Ne3 {[%clk 0:00:13]}  Nxh3 {[%clk 0:00:08]} 56. Nxh3 {[%clk 0:00:12]}  hxg4+ {[%clk 0:00:08]} 57. Kxg4 {[%clk 0:00:13]}  Kf6 {[%clk 0:00:09]} 58. Nf5 {[%clk 0:00:11]}  Ke5 {[%clk 0:00:09]} 59. Ng3 {[%clk 0:00:11]}  Ke6 {[%clk 0:00:09]} 60. Nh5 {[%clk 0:00:11]}  Ke5 {[%clk 0:00:10]} 61. Nf2 {[%clk 0:00:09]}  Kd4 {[%clk 0:00:10]} 62. Ng3 {[%clk 0:00:07]}  Ke5 {[%clk 0:00:10]} 63. Nd3+ {[%clk 0:00:04]}  Kd4 {[%clk 0:00:10]} 64. Nb4 {[%clk 0:00:05]}  Ke5 {[%clk 0:00:11]} 65. Nc6+ {[%clk 0:00:05]}  Ke6 {[%clk 0:00:11]} 66. Nd4+ {[%clk 0:00:05]}  Ke5 {[%clk 0:00:12]} 67. Nf3+ {[%clk 0:00:05]}  Ke6 {[%clk 0:00:12]} 68. Ne1 {[%clk 0:00:05]}  Ke5 {[%clk 0:00:13]} 69. Ng2 {[%clk 0:00:06]}  Ke6 {[%clk 0:00:14]} 70. Ne3 {[%clk 0:00:06]}  Ke5 {[%clk 0:00:14]} 71. Nef5 {[%clk 0:00:07]}  Ke6 {[%clk 0:00:15]} 72. Nh6 {[%clk 0:00:07]}  Ke5 {[%clk 0:00:16]} 73. Kh5 {[%clk 0:00:07]}  Ke6 {[%clk 0:00:17]} 74. Ng4 {[%clk 0:00:08]}  Kd5 {[%clk 0:00:17]} 75. Kg6 {[%clk 0:00:08]}  Kd4 {[%clk 0:00:17]} 76. Kf5 {[%clk 0:00:09]}  Kd3 {[%clk 0:00:18]} 77. Ke5 {[%clk 0:00:09]}  Kc4 {[%clk 0:00:17]} 78. Ke4 {[%clk 0:00:10]}  Kc5 {[%clk 0:00:18]} 79. Nf5 {[%clk 0:00:08]}  Kc4 {[%clk 0:00:18]} 80. Nfe3+ {[%clk 0:00:09]}  Kc5 {[%clk 0:00:18]} 81. Ke5 {[%clk 0:00:09]}  Kc6 {[%clk 0:00:18]} 82. Kd4 {[%clk 0:00:08]}  Kd6 {[%clk 0:00:19]} 83. Nc4+ {[%clk 0:00:08]}  Ke6 {[%clk 0:00:19]} 84. Ke4 {[%clk 0:00:08]}  Ke7 {[%clk 0:00:19]} 85. Ke5 {[%clk 0:00:08]}  Kd7 {[%clk 0:00:19]} 86. Kd5 {[%clk 0:00:08]}  Kc7 {[%clk 0:00:19]} 87. Kc5 {[%clk 0:00:06]}  Kd7 {[%clk 0:00:20]} 88. Kd5 {[%clk 0:00:07]}  Kc7 {[%clk 0:00:20]} 89. Nd2 {[%clk 0:00:06]}  Kd7 {[%clk 0:00:20]} 90. Nb3 {[%clk 0:00:06]}  Kc7 {[%clk 0:00:21]} 91. Nd4 {[%clk 0:00:06]}  Kd7 {[%clk 0:00:21]} 92. Ne6 {[%clk 0:00:06]}  Ke7 {[%clk 0:00:21]} 93. Nc5 {[%clk 0:00:06]}  Kf7 {[%clk 0:00:19]} 94. Kd6 {[%clk 0:00:06]}  Ke8 {[%clk 0:00:20]} 95. Ne6 {[%clk 0:00:05]}  Kf7 {[%clk 0:00:20]} 96. Kd7 {[%clk 0:00:05]}  Kg6 {[%clk 0:00:19]} 97. Kd6 {[%clk 0:00:05]}  Kf5 {[%clk 0:00:20]} 98. Nf2 {[%clk 0:00:04]}  g4 {[%clk 0:00:20]} 99. Nd4+ {[%clk 0:00:04]}  Kf4 {[%clk 0:00:20]} 100. Kd5 {[%clk 0:00:04]}  g3 {[%clk 0:00:21]} 101. Nd3+ {[%clk 0:00:04]}  Ke3 {[%clk 0:00:21]} 102. Nf5+ {[%clk 0:00:04]}  Kxd3 {[%clk 0:00:21]} 103. Nxg3 {[%clk 0:00:05]} 1/2-1/2


[Site "https://www.chess.com"]